Cogmind - Beta 16 @@@ ROGUE MODE // 2025.12.18 @ 20:15:55 Player: C0-2MO Result: Destroyed by IR-UQJ(R) with Subdweller Machine Gun Performance ------------- Evolutions (0) 0 Regions Visited (2) 400 Robots Destroyed (31) 155 Value Destroyed (750) 750 Prototype IDs (0) 0 Alien Tech Used (0) 0 Bonus (0) 0 TOTAL SCORE: 1305 Bonus ------- None Cogmind --------- Core Integrity 0/250 Matter 295/300 Energy 196/200 System Corruption 0% Temperature Warm (102) Movement Treading (320) Ox2 Location -10/Subcaves Parts ------- > --- POWER (1) -------- Subdweller Power Source > --- PROPULSION (2) --- Light Treads > --- UTILITY (2) ------ High-capacity Storage Unit Structural Scanner > --- WEAPON (2) ------- Beam Cannon Subdweller Beam Cannon > --- INVENTORY (20) --- Light Nuclear Core Wheel Wheel Wheel Wheel Disposable Heat Sink Small Storage Unit Huge Storage Unit Medium Matter Pod (100) Subdweller Optics Seismic Detector Seismic Detector Hacking Suite Particle Gun Assault Rifle Grenade Launcher Datajack Mining Laser Mining Claw Peak State ------------ > --- POWER ------------ Light Ion Engine > --- PROPULSION ------- Light Treads Light Treads > --- UTILITY ---------- High-capacity Storage Unit Seismic Detector > --- WEAPON ----------- Particle Gun Subdweller Beam Cannon > --- INVENTORY -------- Subdweller Power Source Light Nuclear Core Wheel Wheel Wheel Wheel Small Storage Unit Huge Storage Unit Medium Matter Pod Structural Scanner Seismic Detector Hacking Suite Small Laser Assault Rifle Grenade Launcher Datajack Mining Laser Mining Claw [Rating: 11] Favorites ----------- Power Light Ion Engine Engine Light Ion Engine Propulsion Light Treads Treads Light Treads Wheel Wheel Utility High-capacity Storage Unit Device Structural Scanner Storage High-capacity Storage Unit Weapon Assault Rifle Energy Gun Particle Gun Energy Cannon Subdweller Beam Cannon Ballistic Gun Assault Rifle Special Weapon Mining Laser Slashing Weapon Mining Claw Special Melee Weapon Datajack Build | -11 -10 -10 ------- Run | Yrd Mat Sub Slots Evolved . | . . . Power . | . . . Propulsion . | . . . Utility . | . . . Weapon . | . . . Parts Attached 26 | 7 13 6 Power 3 | 1 1 1 Engine 3 | 1 1 1 Core . | . . . Reactor . | . . . Propulsion 7 | 2 4 1 Treads 2 | 1 1 . Leg . | . . . Wheel 5 | 1 3 1 Hover . | . . . Flight . | . . . Utility 6 | 2 3 1 Device 4 | 1 2 1 Storage 2 | 1 1 . Processor . | . . . Hackware . | . . . Protection . | . . . Artifact . | . . . Weapon 10 | 2 5 3 Energy Gun 1 | . . 1 Energy Cannon 2 | . . 2 Ballistic Gun 4 | 2 2 . Ballistic Cannon . | . . . Launcher . | . . . Special Weapon 1 | . 1 . Impact Weapon . | . . . Slashing Weapon 1 | . 1 . Piercing Weapon . | . . . Special Melee Weapon 1 | . 1 . Unidentified Prototypes . | . . . Parts Lost 6 | . 3 3 Power 1 | . . 1 Propulsion 2 | . 1 1 Utility . | . . . Weapon 3 | . 2 1 Highest Loss Streak 2 | . 2 1 To Critical Strikes . | . . . Average Backups 16 | 3 11 19 Power 1 | . 1 1 Propulsion 3 | 1 2 4 Utility 6 | . 3 7 Weapon 4 | 1 3 5 Tool/Special . | . . . Unused Backups 7 | . . 7 Power 1 | . . 1 Propulsion . | . . . Utility 4 | . . 4 Weapon 2 | . . 2 Tool/Special . | . . . Average Slot Usage (%) 97 | . 94 99 Engine 12 | . 9 13 Treads 18 | . 4 26 Wheel 9 | . 23 1 Device 14 | . 14 14 Storage 14 | . 14 14 Energy Cannon 10 | . . 16 Ballistic Gun 9 | . 23 1 Slashing Weapon 2 | . . 3 Special Melee Weapon 3 | . . 5 Peak Build Rating 11 | 7 9 11 Average Rating 8 | 5 7 10 On Entrance 5 | . 7 9 Avg Prop Armor Cover (%) 13 | 14 12 12 Naked Turns . | . . . Heaviest Build 57 | 15 48 57 Greatest Support 40 | 16 20 40 Greatest Overweight (x) 4 | . 4 4 Average Overweight (x) 1 | . 1 1 Largest Inventory Capacity 20 | 8 20 20 Average Capacity 18 | 7 16 20 Most Carried 20 | 5 17 20 Average Carried 16 | 4 12 19 Final Capacity 20 | 8 20 20 Final Carried 19 | 5 17 19 Class Distribution -------------------- 100% | Mutant Dominant Class ---------------- Mutant | -10/Materials Mutant | -10/Subcaves Resources | -11 -10 -10 ----------- Run | Yrd Mat Sub Matter Collected 1305 | 360 715 230 Remotely . | . . . Salvage Created 1176 | 191 732 253 Parts 73 | 17 44 12 Haulers Intercepted 1 | . 1 . Recyclers Shooed . | . . . Parts Field Recycled . | . . . Retrieved Matter . | . . . Parts Self-Destructed 6 | . . 6 Prevented . | . . . Parts Restored . | . . . Kills | -11 -10 -10 ------- Run | Yrd Mat Sub Combat Hostiles Destroyed 17 | . 12 5 Guns 14 | . 12 2 Cannons 3 | . . 3 Classes Destroyed 9 | 2 6 1 Worker 2 | . 2 . Builder 2 | . 2 . Tunneler 5 | 5 . . Hauler 1 | . 1 . Recycler 1 | 1 . . Operator 2 | . 2 . Watcher 1 | . 1 . Grunt 12 | . 12 . Subdweller 5 | . . 5 Best Kill Streak 4 | 4 3 1 Combat Bots Only 2 | . 2 1 Max Kills in Single Turn 1 | 1 1 1 Gunslinging . | . . . Exploded . | . . . Melee . | . . . Uniques/NPCs Destroyed . | . . . Combat | -11 -10 -10 -------- Run | Yrd Mat Sub Hostile Shots Fired 103 | . 75 28 Missed 19 | . 15 4 Hits 84 | . 60 24 Projectile 84 | . 60 24 Critical Strikes 2 | . . 2 Damage Taken 1275 | . 749 526 Core 252 | . 116 136 Absorbed by Shields . | . . . Core Remaining (%) 100 | 100 . . Volleys Fired 106 | 15 71 20 Largest 2 | 2 2 2 Hottest 140 | 40 120 140 Shots Fired 195 | 30 129 36 Gun 159 | 30 120 9 Cannon 27 | . . 27 Launcher . | . . . Special 9 | . 9 . Kinetic 155 | 30 120 5 Thermal 40 | . 9 31 Explosive . | . . . Electromagnetic . | . . . Robot Hit Streak 18 | 4 16 18 Robot Miss Streak 5 | 5 5 1 Penetration Max . | . . . Secondary Targets 3 | . 3 . Max Gunslinging Chain 1 | . 1 . Shots Hit Robots 116 | 13 71 32 Core Hits 53 | 7 37 9 Critical Kills . | . . . Critical Parts Destroyed . | . . . Critical Strikes 1 | . . 1 Burn 1 | . . 1 Melee Attacks 38 | . 3 35 Impact . | . . . Slashing 38 | . 3 35 Piercing . | . . . Sneak Attacks 3 | . . 3 Combat Hostiles 1 | . . 1 Follow-up Attacks . | . . . Damage Inflicted 1708 | 157 911 640 Guns 1163 | 157 911 95 Cannons 499 | . . 499 Explosions . | . . . Melee 46 | . . 46 Ramming . | . . . Kinetic 1119 | 157 911 51 Thermal 543 | . . 543 Explosive . | . . . Electromagnetic . | . . . Impact . | . . . Slashing 46 | . . 46 Piercing . | . . . Highest Corruption . | . . . Average Corruption . | . . . Corruption Purged . | . . . Corruption Blocked . | . . . Overload Shots . | . . . Overflow Damage . | . . . Projectiles . | . . . Explosions . | . . . Melee . | . . . Knockbacks . | . . . Impact . | . . . Kinetic . | . . . Secondary . | . . . Self-Inflicted Damage . | . . . Shots . | . . . Rammed . | . . . Targets Rammed . | . . . Kicked . | . . . Crushed . | . . . Highest Temperature 102 | 6 60 102 Average Temperature 24 | 6 14 35 Received Heat Transfer 456 | . 414 42 Siege Activations . | . . . Martial Activations . | . . . Shielding Activations . | . . . Robots Disrupted . | . . . Combat Hostiles . | . . . Robots Corrupted . | . . . Combat Hostiles . | . . . Parts Fried . | . . . Impact Corruptions . | . . . Robots Melted . | . . . Combat Hostiles . | . . . Parts Melted 4 | . . 4 Heat Transferred 999 | . . 999 Parts Sabotaged . | . . . Parts Stolen . | . . . Parts Stripped . | . . . Power Chain Reactions . | . . . Alert | -11 -10 -10 ------- Run | Yrd Mat Sub Maximum Alert Level . | . . . Low Security (%) 100 | 100 100 . Level 1 . | . . . Level 2 . | . . . Level 3 . | . . . Level 4 . | . . . Level 5 . | . . . High Security . | . . . Max Security . | . . . Peak Influence 136 | 10 136 . Initial . | . . . Average 65 | 3 74 . Influence Increases 546 | 30 516 . Destroy 0b10 Robot/C 240 | . 240 . Destroy 0b10 Robot/NC 70 | 30 40 . Destroy Leader 64 | . 64 . Trap Triggered on 0b10 30 | . 30 . Successful Hack 44 | . 44 . Select Force Hacks 30 | . 30 . Destroy Structure 8 | . 8 . Lose Combat Pursuer 60 | . 60 . Influence Decreases 546 | 30 392 124 Entered New Map 60 | . . 60 Time Decay 446 | 30 362 54 Lost Part 40 | . 30 10 Squads Dispatched 4 | . 4 . Investigation 1 | . 1 . Extermination . | . . . Reinforcement 3 | . 3 . Assault . | . . . Garrison . | . . . Intercept . | . . . Searches Triggered . | . . . Construction Impeded . | . . . Haulers Reinforced . | . . . Active Scanning Responses . | . . . Cargo Convoy Interrupts . | . . . Stealth | -11 -10 -10 --------- Run | Yrd Mat Sub Distress Signals . | . . . Communications Jammed . | . . . Distress Signals . | . . . Times Spotted 28 | . 21 7 Peak Tracking Total 3 | . 3 2 Tactical Retreats 3 | . 3 . Traps | -11 -10 -10 ------- Run | Yrd Mat Sub Traps Triggered 4 | . 4 . Indirectly . | . . . Trap Hack Attempts 66 | . 32 34 Triggered . | . . . Disarmed . | . . . Reprogrammed 10 | . 5 5 Reused 3 | . 3 . Traps Extracted . | . . . Installed . | . . . Triggered 3 | . 3 . Machines | -11 -10 -10 ---------- Run | Yrd Mat Sub Machines Disabled 1 | . 1 . Max in Single Turn 1 | . 1 . Machines Repaired . | . . . Machines Dismantled . | . . . Machines Sabotaged . | . . . Overloaded Fab Kills . | . . . Hacking | -11 -10 -10 --------- Run | Yrd Mat Sub Machines Accessed 7 | . 7 . Terminals 6 | . 6 . Fabricators . | . . . Repair Stations . | . . . Recycling Units 1 | . 1 . Scanalyzers . | . . . Garrison Access . | . . . Total Hacks 27 | . 27 . Successful 18 | . 18 . Failed 9 | . 9 . Catastrophic . | . . . Database Lockouts . | . . . Manual 23 | . 23 . Terminals 26 | . 26 . Fabricators . | . . . Repair Stations . | . . . Recycling Units 1 | . 1 . Scanalyzers . | . . . Garrison Access . | . . . Terminal Hacks 6 | . 6 . Robot Analysis 2 | . 2 . Terminal Index 2 | . 2 . Zone Layout 2 | . 2 . Fabricator Hacks . | . . . Repair Station Hacks . | . . . Recycling Unit Hacks . | . . . Scanalyzer . | . . . Garrison Access Hacks . | . . . Unauthorized Hacks 12 | . 12 . Terminals 11 | . 11 . Track 1 | . 1 . Botnet 2 | . 2 . Disrupt 2 | . 2 . Skim 6 | . 6 . Fabricators . | . . . Repair Stations . | . . . Recycling Units 1 | . 1 . Tunnel 1 | . 1 . Scanalyzers . | . . . Garrison Access . | . . . Data Cores Recovered . | . . . Used . | . . . Hacking Detections 6 | . 6 . Full Trace Events . | . . . Feedback Events . | . . . Feedback Blocked . | . . . Robot Schematics Acquired . | . . . Robots Built . | . . . Authchips . | . . . Time . | . . . Total Robot Build Rating . | . . . Part Schematics Acquired . | . . . Parts Built . | . . . Authchips . | . . . Time . | . . . Total Part Build Rating . | . . . Part Studies Acquired . | . . . Parts Repaired . | . . . Time . | . . . Parts Recycled . | . . . Recycled Matter . | . . . Retrieved Matter . | . . . Retrieved Components . | . . . Parts Scanalyzed . | . . . Part Schematics Acquired . | . . . Parts Damaged . | . . . Bothacking | -11 -10 -10 ------------ Run | Yrd Mat Sub Used RIF Installer . | . . . Robots Hacked . | . . . Non-combat . | . . . Combat . | . . . Robot Hacks Applied . | . . . Relay Couplers Released . | . . . Fabnet Peak Effective % . | . . . Robots Rewired . | . . . Allies Hacked . | . . . Hacks Repelled . | . . . Allies | -11 -10 -10 -------- Run | Yrd Mat Sub Total Allies . | . . . Largest Group . | . . . Highest-Rated Group . | . . . Highest-Rated Ally . | . . . Total Orders . | . . . Ally Attacks . | . . . Total Damage . | . . . Kills . | . . . Allies Corrupted . | . . . Allies Melted . | . . . Intel | -11 -10 -10 ------- Run | Yrd Mat Sub Active Infowar (turns) 2430 | 24 928 1478 Structural 1361 | . 2 1359 Seismic 1069 | 24 926 119 Robot Analysis Total 2 | . 2 . Derelict Logs Recovered . | . . . Drone Launches . | . . . Drone Recoveries . | . . . Exploration | -11 -10 -10 ------------- Run | Yrd Mat Sub Turns Passed 2710 | 133 928 1649 Spaces Moved 937 | 74 502 361 Core 3 | 2 1 . Treads 316 | . 3 313 Legs . | . . . Wheels 618 | 72 498 48 Hover . | . . . Flight . | . . . Fastest Speed 50 | 50 80 110 Average Speed 149 | 98 104 223 Slowest Speed 240 | 100 160 240 Overloaded Moves . | . . . Propulsion Burnouts . | . . . Robots Hopped . | . . . Potential Cave-ins . | . . . Cave-ins Triggered . | . . . Exploration Rate (%) 30 | 5 74 12 Regions Visited 2 Branch Regions 1 Pre-discovered Areas 1 | . 1 . Known Exits Taken . | . . . Unknown Exits Taken 2 | 1 1 . Scrap Searched 3 | . . 3 Spaces Dug 12 | . 7 5 Terrain Destroyed 14 | . 9 5 Melee 5 | . 1 4 Projectile 9 | . 8 1 AOE . | . . . Terrain Rammed . | . . . Walls Destroyed . | . . . Machines Disabled . | . . . Actions | -11 -10 -10 --------- Run | Yrd Mat Sub Total 1933 | 100 744 1089 Wait 705 | . 94 611 Move 935 | 73 501 361 Hop . | . . . Pick Up 22 | 5 14 3 Fast Attach 17 | 7 8 2 Attach 7 | . 5 2 Detach 3 | . 1 2 Swap 33 | . 15 18 Drop 1 | . . 1 Fire 106 | 15 71 20 Melee 38 | . 3 35 Ram . | . . . Kick . | . . . Crush . | . . . Escape Stasis . | . . . Rewire . | . . . Trap 66 | . 32 34 Miscellaneous . | . . . Route ------- -11/Scrapyard -10/Materials (discovered 6 exits: [*Mat x3] / [*Min x2] / [*Sub]) -10/Subcaves (discovered 1 exit: [*Mat]) History --------- Turn | Location | Event 11 | -11/Scrapyard | Discovered new exit (range 15) 134 | -11/Scrapyard | Entered Materials 345 | -10/Materials | Build established: Mutant 449 | -10/Materials | Discovered new exit (range 12) 613 | -10/Materials | Discovered new exit (range 19) 613 | -10/Materials | Discovered new exit (range 17) 658 | -10/Materials | Discovered new exit (range 5) 738 | -10/Materials | Learned 4 Subcaves zone layouts 889 | -10/Materials | Discovered new exit (range 4) 925 | -10/Materials | Discovered new exit (range 3) 978 | -10/Materials | Learned location of 1 exit from Recycling 1003 | -10/Materials | Learned location of 1 exit from Storage 1020 | -10/Materials | Learned Storage trap positions 1031 | -10/Materials | Loaded intel: 12 trap records 1062 | -10/Materials | Entered Subcaves 1160 | -10/Subcaves | Core integrity fell below 50% 1426 | -10/Subcaves | Discovered new exit (range 5) 2641 | -10/Subcaves | Disturbed a concealed Subdweller 2700 | -10/Subcaves | Core integrity fell below 20% 2711 | -10/Subcaves | Destroyed by IR-UQJ(R) with Subdweller Machine Gun Last Messages --------------- 02435_ Piercing Trap reprogrammed. 02481_ Attempting to reprogram Piercing Trap. 02484_ Piercing Trap reprogrammed. 02590_ Attempting to reprogram Piercing Trap. 02590_ Piercing Trap reprogrammed. 02627_ Searching scrap... 02627_ Found Lgt. Humpback. 02627_ Found Flamer. 02627_ Found 51 Matter. 02628_ Acquired 20 matter. 02631_ Searching scrap... 02631_ Found Battle Rifle. 02631_ Found 61 Matter. 02641_ RJ-BSW(R) angrily emerges from the Twisted Machinery. 02644_ Lgt. Ion Engine destroyed. 02646_ Sub. Power Source melted. 02646_ RJ-BSW(R) destroyed. 02701_ Lgt. Treads destroyed. Map ----- +----------------------------------------------------+ | | | | | ????????????????????????????????????????????????? | | ????????????????????????????????????????????????? | | ????????????????????????????????????????????????? | | ????????????????????????????????????????????????? | | ????????????????????????????????????????????????? | | ????????????????????????????????????????????????? | | ????????????????????????????????????????????????? | | ????????????????????????????????????????????????? | | ????????????????????????????????????????????????? | | ???????????????????########?????????????????????? | | ??????????????????#########?????????????????????? | | ??????????????????###"%[%##?????????????????????? | | ??????????????????##|!["###?????????????????????? | | ####???#############&######?????????????????????? | | ####################"! ####????????????????????? | | "####### ## ## ## ######???????????????????? | | " "#"# #^ ^ ^ #< < ####??????????????????? | | """ # ^ ^ ###??????????????????? | | """ #^^ ## ##??????????????????? | | " # ### ##??????????????????? | | ## # ^##### ##??????????????????? | | # ### ##^ ####### ##??????????????????? | | ######## ###?## ##??????????????????? | | ########## ??## @####??????????????????? | | #######?## ^ ? ##RR#####??????????????????? | | ###?????## # ####??????????????????? | | ????????### ## ""###?????????????????? | | ????????##### # """ """###????????????????? | | ?????????##### ## """""""##????????????????? | | ???????????####### ###"""""" ###??????????????? | | ????????????####### ###"""" """ #??????????????? | | ?????????????????## " """"""" ##?????????????? | | ????????????????? " """""""#?????????????? | | ????????????????? " ###" """#?????????????? | | ???????????????? ?#### ##?# #?????????????? | | ??????????????????????# #??## #?????????????? | | ???????????????????##?# #???## #?????????????? | | ??????????????????? ### #????## #?????????????? | | ??????????????????? ## ##????## #?????????????? | | ??????????????????? ## #?????###?????????????? | | ??????????????????? ######?????????????????? | | ??????????????????? # ##????????????????? | | ??????????????????? ## "##???????????????? | | ??????????????????? #### ## ""#???????????????? | | ???????????????????## " ""## ""#???????????????? | | ???????????????????# ""####"""#???????????????? | | ??????????????????? ####??#"""##??????????????? | | ??????????????????? ##?????##"""##?????????????? | +----------------------------------------------------+ Best States ------------- Heat Dissipation 25 Coolant Potential 50 Energy Generation 15 Energy Capacity 250 Matter Stores 300 Matter Capacity 300 Sight Range 16 Terrain Scan Density 10 Evasion (%) 44 Recoil Reduction 2 Item Schematics ----------------- None Robot Schematics ------------------ None Fabricated ------------ Nothing Repaired ---------- Nothing Studied --------- None Alien Tech Used ----------------- None Achievements -------------- None Challenges ------------ None Game ------ Seed CloakingBehemothPit Manual? 0 Play Time 00:22:22 Cumulative 799.4 hours Start 2025.12.18 @ 19:03:14 End 2025.12.18 @ 20:15:55 Sessions 1 Manual Loads 0 Difficulty Rogue Special Mode None Game No. 328 Rogue 328 Adventurer 0 Explorer 0 Win Type - Total 85 Types 43/6/15/6/6/1/1/3/0/4 Lore% 97 Gallery% 91 Achievement% 84 Wizard Run 0 Options --------- Layout 1 ASCII 0 Keyboard 0 Movement Numpad Keybinds 0 Fullscreen 1 Font 24/Smallcaps Map View 50x35 Zoom Use 0% Tactical HUD 1 Map Filters NONE Filters NONE Steam 1 RUN: 491ffcd7-4159-4b2a-b80a-549c56cadbce